bitfinex/quotes_SOLUSD_20220307
["timestamp","ask_amount","ask_price","bid_price","bid_amount"]
[1646696649121,1.88211788,82.495,82.45,18.1962]
[1646696649520,1.88211788,82.495,82.451,6.062]
[1646696649719,1.63211788,82.489,82.46,18.1963]
[1646696649919,0.25,82.488,82.46,18.1963]
[1646696651421,0.25,82.495,82.46,18.1963]
[1646696653826,23.5505,82.519,82.47,18.1929]
[1646696654623,58.42327632,82.518,82.471,60.95578842]
[1646696654824,0.25,82.517,82.471,60.95578842]
[1646696655424,0.25,82.517,82.48,18.192]
[1646696655629,24.9949,82.539,82.48,18.192]
[1646696655825,24.9949,82.539,82.481,0.25]
[1646696656027,24.9949,82.539,82.482,6.059]
[1646696656238,24.9949,82.539,82.483,0.25]
[1646696656442,24.9949,82.539,82.485,56.143472]
[1646696656641,45.78784292,82.547,82.49,18.188]
[1646696656939,14.43,82.58,82.491,6.309]
[1646696657138,25.38731143,82.577,82.493,121.4]
[1646696657338,25.38731143,82.577,82.495,0.26378723]
[1646696657539,25.38731143,82.577,82.496,6.057]
[1646696657738,48.63818639,82.576,82.498,54.89478842]
[1646696657941,48.63818639,82.576,82.5,18.1848]
[1646696658137,48.63818639,82.576,82.501,6.307]
[1646696658337,25.38731143,82.575,82.502,6.0]
[1646696658537,25.38731143,82.575,82.503,0.25]
[1646696658738,25.38731143,82.575,82.504,6.057]
[1646696658941,0.25,82.574,82.505,0.25]
[1646696659139,0.25,82.574,82.52,18.1801]
[1646696659340,25.38731143,82.573,82.52,18.1801]
[1646696659542,0.25,82.572,82.52,18.1801]
[1646696659941,25.63731143,82.572,82.52,18.1801]
[1646696660842,0.25,82.572,82.52,18.1801]
[1646696661043,0.25,82.575,82.52,18.1801]
[1646696661243,1.63602973,82.553,82.52,18.1801]
[1646696661448,1.63602973,82.551,82.52,18.1801]
[1646696661647,1.63602973,82.552,82.52,18.1801]
[1646696661843,1.63602973,82.554,82.52,18.1801]
[1646696662044,1.63602973,82.555,82.53,18.1793]
[1646696662242,0.25,82.554,82.53,18.1793]
[1646696662442,0.25,82.554,82.531,55.07863225]
[1646696663343,1.88602973,82.561,82.531,55.07863225]
[1646696663548,0.25,82.561,82.531,49.02163225]
[1646696663744,0.25,82.562,82.531,49.02163225]
[1646696663947,0.25,82.562,82.532,6.057]
[1646696664244,0.25,82.563,82.532,6.057]
[1646696664444,0.25,82.565,82.532,6.057]
[1646696664644,0.25,82.565,82.531,55.07863225]
[1646696665047,0.25,82.566,82.531,55.07863225]
[1646696665646,0.25,82.566,82.54,18.1785]
[1646696666047,0.25,82.576,82.54,18.1785]
[1646696666246,0.25,82.577,82.54,18.1785]
[1646696666451,0.25,82.578,82.54,18.1785]
[1646696667346,1.88602973,82.578,82.54,18.1785]
[1646696667549,0.25,82.578,82.54,18.1785]
[1646696667949,1.88602973,82.578,82.53,18.1807]
[1646696668149,1.63602973,82.575,82.53,18.1807]
[1646696668351,0.25,82.574,82.53,18.1807]
[1646696669251,1.63602973,82.575,82.531,0.25]
[1646696669451,24.8507,82.579,82.531,0.25]
[1646696669751,24.8507,82.579,82.53,18.1807]
[1646696669952,1.63602973,82.576,82.53,18.1807]
[1646696670754,0.25,82.575,82.53,18.1807]
[1646696671355,1.88602973,82.575,82.53,18.1807]
[1646696671558,0.25,82.575,82.53,18.1807]
[1646696671755,1.88602973,82.575,82.53,18.1807]
[1646696672757,1.63602973,82.573,82.53,18.1807]
[1646696672959,0.25,82.572,82.53,18.1807]
[1646696673159,1.63602973,82.571,82.53,18.1807]
[1646696673357,0.25,82.57,82.53,18.1807]
[1646696673958,0.25,82.57,82.521,24.3816]
[1646696674161,62.77648753,82.566,82.521,24.3816]
[1646696674457,0.25,82.565,82.521,24.3816]
[1646696675061,1.63602973,82.563,82.521,24.3816]
[1646696675262,0.25,82.562,82.521,24.3816]
[1646696675561,1.63602973,82.555,82.51,18.1847]
[1646696675759,1.88602973,82.554,82.51,18.1847]
[1646696675959,54.10740454,82.553,82.51,18.1847]
[1646696676160,0.25,82.552,82.498,24.3054]
[1646696677164,0.25,82.552,82.5,18.187]
[1646696677362,1.88602973,82.552,82.5,18.187]
[1646696677764,1.63602973,82.551,82.5,18.187]
[1646696677963,0.25,82.55,82.5,18.187]
[1646696678365,1.88602973,82.55,82.5,18.187]
[1646696679064,1.63602973,82.548,82.5,18.187]
[1646696679268,0.25,82.547,82.5,18.187]
[1646696680067,1.88602973,82.547,82.5,18.187]
[1646696680866,1.63602973,82.546,82.5,18.187]
[1646696681066,0.25,82.545,82.5,18.187]
[1646696681266,1.88602973,82.547,82.5,18.187]
[1646696681769,1.63602973,82.546,82.5,18.187]
[1646696681970,0.25,82.545,82.5,18.187]
[1646696682390,49.15310945,82.539,82.5,18.187]
[1646696682570,0.25,82.538,82.5,18.187]
[1646696683372,1.63602973,82.545,82.51,18.1841]
[1646696683572,0.25,82.544,82.511,0.25]
[1646696683774,1.63602973,82.552,82.501,0.25]
[1646696684173,1.63602973,82.547,82.501,0.25]
[1646696684673,1.63602973,82.548,82.499,0.25]
[1646696684872,46.0459047,82.563,82.499,0.25]
[1646696684873,1.63602973,82.547,82.499,0.25]
[1646696685274,1.63602973,82.547,82.521,46.06364654]
[1646696685673,1.63602973,82.547,82.52,18.1826]
[1646696685874,1.88602973,82.546,82.52,18.1826]
[1646696686076,1.63602973,82.545,82.52,18.1826]
[1646696686278,1.63602973,82.541,82.52,18.1826]
[1646696686475,1.63602973,82.54,82.52,18.1826]
[1646696688076,0.25,82.544,82.51,18.1848]
[1646696688077,1.63602973,82.536,82.51,18.1848]
[1646696688279,1.88602973,82.535,82.51,18.1848]
[1646696688477,1.63602973,82.534,82.51,18.1848]
[1646696688880,0.25,82.535,82.51,18.1848]
[1646696689377,0.25,82.536,82.51,18.1848]
[1646696689780,1.63602973,82.539,82.51,68.81030296]
[1646696690377,1.63602973,82.542,82.51,68.81030296]
[1646696690577,1.63602973,82.54,82.51,68.81030296]
[1646696690978,1.63602973,82.541,82.51,18.1848]
[1646696691277,1.63602973,82.538,82.51,18.1848]
[1646696691479,1.63602973,82.537,82.51,18.1848]
[1646696692379,1.63602973,82.538,82.51,18.1848]
[1646696692578,1.63602973,82.537,82.51,18.1848]
[1646696692780,1.63602973,82.537,82.511,63.82807904]
[1646696692980,0.25,82.536,82.511,63.82807904]
[1646696693179,1.88602973,82.537,82.511,63.82807904]
[1646696693380,0.25,82.537,82.511,63.82807904]
[1646696693585,1.88602973,82.537,82.511,63.82807904]
[1646696693783,1.63602973,82.535,82.511,63.82807904]
[1646696693985,0.25,82.534,82.511,63.82807904]
[1646696695483,0.25,82.535,82.511,63.82807904]
[1646696695685,0.25,82.535,82.51,18.1848]
[1646696695885,1.88602973,82.535,82.51,18.1848]
[1646696696486,1.63602973,82.534,82.51,18.1848]
[1646696697406,1.63602973,82.533,82.51,18.1848]
[1646696697989,9.11602973,82.533,82.51,18.1848]
[1646696698186,1.63602973,82.532,82.51,18.1848]
[1646696698387,1.63602973,82.53,82.51,18.1848]
[1646696698587,1.63602973,82.531,82.51,18.1848]
[1646696698790,1.63602973,82.53,82.51,18.1848]
[1646696700190,1.63602973,82.529,82.51,18.1848]
[1646696700388,1.63602973,82.529,82.5,18.1872]
[1646696700589,0.25,82.528,82.5,18.1872]
[1646696700790,1.63602973,82.526,82.5,18.1872]
[1646696700991,1.63602973,82.526,82.488,6.059]
[1646696700992,0.25,82.525,82.488,6.059]
[1646696701189,1.63602973,82.521,82.471,6.059]
[1646696701390,1.88602973,82.52,82.488,6.059]
[1646696701592,1.63602973,82.519,82.49,18.1894]
[1646696701789,0.25,82.518,82.49,18.1894]
[1646696702000,0.25,82.518,82.468,22.8447]
[1646696702190,1.63602973,82.508,82.468,22.8447]
[1646696702389,1.88602973,82.507,82.468,22.8447]
[1646696702991,64.74865989,82.506,82.47,18.1937]
[1646696703189,0.25,82.505,82.47,18.1937]
[1646696704691,123.28602973,82.505,82.451,6.061]
[1646696704913,1.63602973,82.49,82.421,29.9202]
[1646696705091,0.25,82.489,82.421,29.9202]
[1646696705293,24.1437,82.489,82.44,18.2003]
[1646696705494,1.63602973,82.482,82.44,18.2003]
[1646696705691,61.41890204,82.488,82.44,18.2003]
[1646696706292,63.05493177,82.488,82.44,18.2003]
[1646696706492,1.63602973,82.486,82.44,18.2003]
[1646696706691,1.63602973,82.485,82.43,18.2024]
[1646696706892,1.63602973,82.485,82.397,121.4]
[1646696706893,194.23,82.479,82.375,31.67379718]
[1646696707090,1.63602973,82.475,82.376,24.5165]
[1646696707295,1.63602973,82.456,82.376,24.5165]
[1646696707496,16.06602973,82.45,82.376,24.5165]
[1646696707692,1.63602973,82.444,82.376,24.5165]
[1646696707894,135.83,82.44,82.38,18.2124]
[1646696708094,6.066,82.439,82.351,23.8582]
[1646696708292,169.10452188,82.438,82.35,53.84963826]
[1646696708492,72.83,82.437,82.33,60.7235]
[1646696708694,72.83,82.437,82.339,6.0]
[1646696708695,194.23,82.434,82.339,6.0]
[1646696708897,121.4,82.419,82.34,18.2205]
[1646696709091,139.6205,82.41,82.341,6.0]
[1646696709293,14.43,82.4,82.341,6.0]
[1646696709492,59.13744747,82.399,82.34,18.2205]
[1646696709999,18.2249,82.39,82.308,100.0]
[1646696710195,135.83,82.38,82.308,100.0]
[1646696710497,55.76970281,82.379,82.308,100.0]
[1646696710694,0.25,82.378,82.308,100.0]
[1646696711093,18.2299,82.37,82.308,100.0]
[1646696711294,14.43,82.36,82.308,100.0]
[1646696711492,0.25,82.359,82.282,18.607]
[1646696711697,0.25,82.359,82.29,18.2319]
[1646696711893,57.08058072,82.357,82.29,18.2319]
[1646696712093,0.25,82.356,82.272,22.5323]
[1646696712894,8.71,82.356,82.273,55.24083103]
[1646696713096,6.074,82.355,82.273,55.24083103]
[1646696713394,0.25,82.354,82.274,6.25]
[1646696713795,14.43,82.35,82.274,6.25]
[1646696713996,0.25,82.349,82.274,6.25]
[1646696714200,0.25,82.349,82.28,18.233]
[1646696714397,0.25,82.349,82.281,6.0]
[1646696714597,14.43,82.35,82.282,0.25]
[1646696715297,6.074,82.356,82.291,57.92156646]
[1646696715498,6.074,82.356,82.292,6.25]
[1646696715700,6.073,82.369,82.292,6.25]
[1646696716499,0.25,82.356,82.292,6.25]
[1646696716801,6.073,82.355,82.292,6.25]
[1646696717001,6.073,82.369,82.3,18.2281]
[1646696717201,6.073,82.369,82.301,0.25]
[1646696717599,14.43,82.38,82.301,0.25]
[1646696717600,6.072,82.379,82.301,0.25]
[1646696718000,57.94225966,82.378,82.301,0.25]
[1646696718201,0.25,82.377,82.293,0.87997853]
[1646696718401,0.25,82.377,82.293,0.25]
[1646696719104,0.25,82.377,82.321,52.35205136]
[1646696719305,6.071,82.376,82.321,52.35205136]
[1646696719708,6.071,82.376,82.322,0.25]
[1646696720417,57.94225966,82.378,82.322,0.25]
[1646696720823,57.94225966,82.378,82.33,18.2225]
[1646696721020,0.25,82.377,82.321,52.35205136]
[1646696721424,0.25,82.377,82.292,6.0]
[1646696721822,33.7819781,82.376,82.293,0.62997853]
[1646696722222,0.25,82.375,82.293,0.62997853]
[1646696722423,149.3599781,82.375,82.292,6.0]
[1646696722624,152.19611336,82.375,82.278,48.56438495]
[1646696722824,121.4,82.373,82.278,48.56438495]
[1646696723122,121.4,82.359,82.248,47.9621]
[1646696723324,6.325,82.358,82.248,47.9621]
[1646696723523,121.4,82.357,82.29,18.2315]
[1646696723727,0.25,82.356,82.29,18.2315]
[1646696724221,6.073,82.355,82.291,46.71909478]
[1646696724421,121.65,82.354,82.291,46.71909478]
[1646696724622,6.073,82.353,82.291,46.71909478]
[1646696725022,6.073,82.355,82.291,46.71909478]
[1646696725423,121.4,82.354,82.291,46.71909478]
[1646696725624,6.073,82.353,82.291,46.71909478]
[1646696726123,6.073,82.355,82.291,46.71909478]
[1646696727125,6.073,82.355,82.29,18.2315]
[1646696727325,121.4,82.354,82.27,18.2348]
[1646696727526,121.4,82.339,82.27,18.2348]
[1646696727725,121.4,82.337,82.27,18.2348]
[1646696727924,121.4,82.335,82.25,60.7826]
[1646696728124,61.18013004,82.329,82.251,60.71393955]
[1646696728329,0.25,82.328,82.251,60.71393955]
[1646696728630,14.43,82.33,82.26,18.2367]
[1646696728829,6.075,82.336,82.261,121.65]
[1646696729124,14.43,82.35,82.27,60.7706]
[1646696729326,14.43,82.35,82.271,0.25]
[1646696729725,46.99280041,82.349,82.271,47.04504878]
[1646696730127,6.074,82.348,82.28,18.2312]
[1646696730326,6.074,82.348,82.281,0.25]
[1646696730527,0.25,82.347,82.281,0.25]
[1646696730728,6.074,82.346,82.281,0.25]
[1646696730931,0.25,82.345,82.281,0.25]
[1646696731328,0.25,82.345,82.272,0.25]
[1646696731531,0.25,82.345,82.29,18.2318]
[1646696731726,6.074,82.344,82.291,52.34591179]
[1646696731927,0.25,82.343,82.291,52.22750554]
[1646696732127,6.074,82.342,82.291,52.22750554]
[1646696732328,0.25,82.341,82.291,52.22750554]
[1646696732528,6.074,82.34,82.291,52.22750554]
[1646696732827,0.25,82.339,82.291,52.22750554]
[1646696733026,6.074,82.338,82.291,52.22750554]
[1646696733227,0.25,82.337,82.29,18.2318]
[1646696733532,121.65,82.337,82.262,24.3396]
[1646696733927,121.4,82.335,82.262,24.3396]
[1646696734127,135.83,82.33,82.262,24.3396]
[1646696734329,58.60238155,82.329,82.263,55.50634843]
[1646696734729,6.075,82.328,82.264,0.25]
[1646696734929,0.25,82.327,82.264,0.25]
[1646696735130,0.25,82.327,82.27,18.2368]
[1646696736230,0.25,82.327,82.271,0.25]
[1646696736430,0.25,82.327,82.28,18.2316]
[1646696736631,0.25,82.327,82.281,0.25]
[1646696736831,1.63602973,82.338,82.271,0.25]
[1646696737032,57.91803853,82.337,82.271,0.25]
[1646696737534,121.4,82.336,82.263,55.50634843]
[1646696737832,1.63602973,82.316,82.264,6.0]
[1646696738033,1.63602973,82.301,82.213,6.0]
[1646696738233,7.15,82.316,82.213,6.0]
[1646696738234,1.63602973,82.297,82.213,6.0]
[1646696738432,8.87602973,82.297,82.24,18.2438]
[1646696738634,59.26575516,82.296,82.241,6.0]
[1646696739033,60.90178489,82.296,82.241,6.0]
[1646696739235,72.83,82.295,82.24,18.2438]
[1646696739435,74.46602973,82.293,82.193,17.9706]
[1646696739639,14.43,82.29,82.22,18.2482]
[1646696739835,1.63602973,82.285,82.22,18.2482]
[1646696740036,64.3700058,82.278,82.22,18.2482]
[1646696740235,121.65,82.277,82.22,18.2482]
[1646696740445,121.4,82.275,82.206,100.0]
[1646696740637,0.25,82.274,82.19,60.8315]
[1646696740838,121.4,82.269,82.19,60.8315]
[1646696741037,121.4,82.267,82.2,18.2528]
[1646696741242,0.25,82.266,82.2,18.2528]
[1646696741439,121.4,82.264,82.2,18.2528]
[1646696741637,123.03602973,82.262,82.2,18.2528]
[1646696741836,1.88602973,82.261,82.2,18.2528]
[1646696742035,1.63602973,82.258,82.19,18.255]
[1646696742236,0.25,82.257,82.19,18.255]
[1646696742436,6.08,82.256,82.19,18.255]
[1646696742642,0.25,82.255,82.19,18.255]
[1646696742843,7.71702973,82.254,82.16,60.8534]
[1646696743043,32.6896,82.25,82.16,18.2596]
[1646696743247,0.25,82.249,82.166,100.0]
[1646696743447,1.63602973,82.241,82.166,100.0]
[1646696743650,121.4,82.229,82.133,47.6989]
[1646696743857,63.72617778,82.228,82.14,60.8653]
[1646696744045,57.64317778,82.228,82.14,60.8653]
[1646696744245,57.64317778,82.228,82.15,18.2625]
[1646696744446,121.4,82.227,82.151,59.71318064]
[1646696745056,121.4,82.227,82.152,6.0]
[1646696745245,0.25,82.226,82.152,6.0]
[1646696745444,0.25,82.227,82.152,6.0]
[1646696745847,14.43,82.23,82.16,18.2601]
[1646696746048,6.083,82.238,82.16,18.2601]
[1646696746049,6.083,82.238,82.161,6.0]
[1646696746458,6.082,82.249,82.162,0.62997853]
[1646696746652,6.082,82.249,82.164,121.4]
[1646696746848,6.082,82.249,82.181,121.4]
[1646696747049,6.082,82.249,82.182,6.0]
[1646696747248,6.082,82.249,82.191,121.4]
[1646696747449,6.082,82.249,82.194,0.28121521]
[1646696747649,6.081,82.273,82.195,121.4]
[1646696747850,6.081,82.273,82.196,6.25]
[1646696748055,63.98566162,82.272,82.196,56.20290501]
[1646696748251,6.08,82.271,82.2,18.2479]
[1646696748451,6.08,82.271,82.201,0.25]
[1646696748650,6.08,82.271,82.201,6.25]
[1646696748851,6.08,82.292,82.201,0.87997853]
[1646696749054,6.08,82.292,82.203,0.28121521]
[1646696749252,57.87900095,82.292,82.203,121.68121521]
[1646696749450,51.79900095,82.292,82.205,121.4]
[1646696749652,121.4,82.291,82.22,18.2465]
[1646696749854,124.23613526,82.291,82.221,45.52647101]
[1646696750062,121.4,82.289,82.22,18.2465]
[1646696750262,0.25,82.288,82.202,6.0]
[1646696750463,0.25,82.288,82.203,0.25]
[1646696750464,3.08613526,82.288,82.203,0.25]
[1646696750663,4.72216499,82.288,82.193,6.0]
[1646696750865,1.63602973,82.286,82.192,0.62997853]
[1646696751064,6.079,82.287,82.193,45.62117811]
[1646696751065,0.25,82.285,82.193,45.62117811]
[1646696751265,1.63602973,82.283,82.193,45.62117811]
[1646696751465,6.329,82.282,82.193,45.62117811]
[1646696751669,9.16513526,82.282,82.193,45.62117811]
[1646696751964,14.43,82.28,82.193,45.62117811]
[1646696752263,59.52965511,82.279,82.21,18.2493]
[1646696752463,6.079,82.278,82.21,18.2493]
[1646696752665,0.25,82.277,82.21,18.2493]
[1646696752865,6.079,82.276,82.21,18.2493]
[1646696753065,0.25,82.275,82.21,18.2493]
[1646696753271,3.08613526,82.275,82.21,18.2493]
[1646696753682,2.83613526,82.274,82.21,18.2493]
[1646696753880,0.25,82.273,82.21,18.2493]
[1646696754286,2.83613526,82.272,82.21,18.2493]
[1646696754483,6.329,82.271,82.21,18.2493]
[1646696754883,9.16513526,82.271,82.21,18.2493]
[1646696755085,3.08613526,82.271,82.21,18.2493]
[1646696757683,2.83613526,82.271,82.21,18.2493]
[1646696757886,59.27965511,82.279,82.22,18.2471]
[1646696758084,6.079,82.278,82.221,47.13076596]
[1646696758485,6.079,82.278,82.221,147.13076596]
[1646696758684,59.27965511,82.279,82.221,147.13076596]
[1646696759085,59.27965511,82.279,82.23,18.2452]
[1646696759289,0.25,82.278,82.2,60.8206]
[1646696759490,0.25,82.278,82.201,0.25]
[1646696759890,6.079,82.277,82.201,0.25]
[1646696760089,0.25,82.276,82.203,100.0]
[1646696760291,6.079,82.275,82.204,58.39462583]
[1646696760489,0.25,82.274,82.204,58.39462583]
[1646696760689,0.25,82.274,82.21,18.2478]
[1646696761290,6.079,82.273,82.21,18.2478]
[1646696761490,0.25,82.272,82.21,18.2478]
[1646696761692,6.079,82.271,82.21,18.2478]
[1646696761894,121.65,82.27,82.21,18.2478]
[1646696762293,136.08,82.27,82.21,18.2478]
[1646696762494,121.4,82.268,82.2,18.2526]
[1646696762694,14.68,82.27,82.2,18.2526]
[1646696762695,121.4,82.266,82.2,18.2526]
[1646696762895,121.4,82.264,82.2,18.2526]
[1646696763095,127.8,82.264,82.2,18.2526]
[1646696763297,121.4,82.262,82.18,60.8369]
[1646696763496,121.4,82.259,82.16,60.8529]
[1646696763699,0.25,82.258,82.16,60.8529]
[1646696763897,194.23,82.253,82.146,0.62997853]
[1646696764097,121.4,82.239,82.153,100.0]
[1646696764298,121.4,82.231,82.153,100.0]
[1646696764499,121.4,82.219,82.153,100.0]
[1646696764699,121.4,82.209,82.153,100.0]
[1646696764898,121.4,82.207,82.153,100.0]
[1646696765100,121.4,82.205,82.14,41.7212]
[1646696765298,121.4,82.203,82.14,18.266]
[1646696765604,121.4,82.201,82.13,18.2682]
[1646696765801,121.4,82.199,82.13,18.2682]
[1646696766204,121.4,82.199,82.111,100.0]
[1646696766205,194.23,82.193,82.111,100.0]
[1646696766403,121.4,82.179,82.111,100.0]
[1646696766605,51.72806611,82.178,82.112,56.89741697]
[1646696766804,6.086,82.177,82.12,18.2708]
[1646696767606,51.72806611,82.178,82.121,6.71597853]
[1646696767806,51.72806611,82.178,82.13,18.266]
[1646696768005,51.72806611,82.178,82.132,60.83431926]
[1646696768205,51.72806611,82.178,82.133,6.086]
[1646696768408,51.72806611,82.178,82.122,6.086]
[1646696768706,0.25,82.177,82.107,0.62997853]
[1646696768905,0.25,82.177,82.13,18.2683]
[1646696769108,0.25,82.177,82.108,6.087]
[1646696769308,0.25,82.177,82.092,0.62997853]
[1646696769510,72.83,82.175,82.096,55.33043124]
[1646696769710,194.23,82.159,82.074,6.087]
[1646696769907,194.23,82.159,82.04,31.066]
[1646696769908,72.83,82.157,82.04,31.066]
[1646696770108,0.25,82.156,82.07,18.2776]
[1646696770311,6.089,82.155,82.072,64.72773813]
[1646696770508,0.25,82.154,82.073,6.089]
[1646696770710,6.089,82.153,82.073,6.089]
[1646696770909,0.25,82.152,82.073,6.089]
[1646696771108,0.25,82.152,82.072,64.72773813]
[1646696771109,6.089,82.151,82.072,64.72773813]
[1646696771307,0.25,82.15,82.086,55.32]
[1646696771509,0.25,82.15,82.088,63.90448687]
[1646696771710,0.25,82.15,82.089,6.338]
[1646696772311,0.25,82.157,82.089,6.338]
[1646696772711,6.088,82.156,82.089,0.25]
[1646696772910,0.25,82.155,82.089,0.25]
[1646696773113,6.088,82.154,82.09,18.2745]
[1646696773309,0.25,82.153,82.09,18.2745]
[1646696773510,6.088,82.152,82.09,18.2745]
[1646696773711,0.25,82.151,82.091,6.088]
[1646696774710,0.25,82.154,82.091,6.088]
[1646696775113,6.088,82.153,82.09,18.2745]
[1646696775313,121.65,82.152,82.09,18.2745]
[1646696775511,127.488,82.151,82.074,6.088]
[1646696775710,0.25,82.15,82.075,0.25]
[1646696775911,121.4,82.148,82.076,6.089]
[1646696776114,121.4,82.146,82.076,6.089]
[1646696776312,121.4,82.144,82.064,6.089]
[1646696776512,14.43,82.14,82.052,6.089]
[1646696776713,6.34,82.139,82.052,6.089]
[1646696777012,31.2575781,82.139,82.052,6.089]
[1646696777214,28.00371336,82.139,82.06,18.281]
[1646696777415,6.0,82.138,82.061,6.34]
[1646696777613,0.25,82.137,82.061,6.34]
[1646696778614,6.09,82.136,82.071,58.89271743]
[1646696778822,0.25,82.135,82.071,58.89271743]
[1646696779118,6.0,82.138,82.072,6.339]
[1646696779418,8.92513526,82.161,82.076,55.32]
[1646696779620,6.03,82.157,82.077,6.25]
[1646696779818,6.03,82.157,82.078,6.0]
[1646696780041,50.48674605,82.156,82.079,6.338]
[1646696780242,50.48674605,82.156,82.08,6.0]
[1646696780440,50.48674605,82.156,82.1,18.2711]
[1646696780639,50.48674605,82.156,82.101,60.58687401]
[1646696780838,6.088,82.155,82.101,60.58687401]
[1646696781239,50.51674605,82.156,82.101,60.58687401]
[1646696781440,50.51674605,82.156,82.079,0.25]
[1646696781441,50.51674605,82.156,82.059,18.1746]
[1646696781639,194.23,82.153,82.02,14.43]
[1646696781839,121.4,82.139,82.033,18.65827853]
[1646696782039,129.48,82.139,82.033,18.65827853]
[1646696782238,0.25,82.138,82.067,6.089]
[1646696782441,121.4,82.137,82.068,45.57591268]
[1646696782641,121.4,82.135,82.068,44.57591268]
[1646696782838,121.4,82.133,82.069,0.25]
[1646696783039,121.4,82.131,82.069,0.25]
[1646696783240,6.34,82.13,82.069,0.25]
[1646696784040,6.0,82.129,82.07,6.09]
[1646696784241,0.25,82.128,82.07,6.09]
[1646696784446,6.25,82.128,82.07,6.09]
[1646696784642,0.25,82.128,82.07,6.09]
[1646696785041,6.0,82.137,82.07,6.09]
[1646696785042,6.0,82.137,82.071,0.25]
[1646696785245,0.25,82.136,82.072,6.089]
[1646696785444,0.25,82.136,82.073,0.25]
[1646696785646,6.339,82.136,82.073,0.25]
[1646696785844,0.25,82.136,82.074,6.089]
[1646696786045,0.25,82.136,82.075,0.25]
[1646696786247,0.03,82.13,82.081,47.39951233]
[1646696786556,0.03,82.13,82.082,6.339]
[1646696787350,0.03,82.13,82.09,18.2752]
[1646696787546,0.03,82.13,82.082,6.339]
[1646696787547,0.03,82.13,82.091,0.25]
[1646696787749,0.03,82.13,82.082,6.339]
[1646696787750,0.03,82.13,82.092,6.089]
[1646696787949,0.03,82.13,82.093,0.25]
[1646696788147,0.03,82.13,82.095,52.12436003]
[1646696788447,0.03,82.13,82.096,6.339]
[1646696789148,0.03,82.13,82.1,18.2717]
[1646696789550,0.03,82.13,82.082,47.1247]
[1646696789750,8.12,82.13,82.031,24.272]
[1646696790052,8.12,82.13,82.032,47.2648]
[1646696790053,121.4,82.128,82.032,47.2648]
[1646696790251,1.63602973,82.109,82.04,18.2864]
[1646696790452,121.4,82.099,82.04,18.2864]
[1646696790750,46.5844909,82.095,82.04,18.2864]
[1646696791151,46.5844909,82.095,82.03,18.2898]
[1646696791351,46.5844909,82.095,82.022,6.091]
[1646696791352,16.06602973,82.09,82.022,6.091]
[1646696791552,16.06602973,82.09,82.0,60.9702]
[1646696791553,1.63602973,82.081,82.0,60.9702]
[1646696791750,121.4,82.079,82.0,60.9702]
[1646696791952,121.4,82.073,82.001,6.094]
[1646696792151,121.4,82.073,81.977,6.094]
[1646696792152,121.4,82.059,81.977,6.094]
[1646696792352,127.496,82.059,81.98,18.2997]
[1646696792551,1.63602973,82.057,81.98,18.2997]
[1646696792853,2.83613526,82.058,81.98,18.2997]